bitfinex/quotes_BTCUSD_20241110
["timestamp","ask_amount","ask_price","bid_price","bid_amount"]
[1731273845284,0.12594221,79272.0,79263.0,0.126161]
[1731273845662,0.126151,79270.0,79261.0,0.131165]
[1731273845829,0.12594221,79269.0,79261.0,0.19081178]
[1731273846037,0.126157,79266.0,79261.0,0.19081178]
[1731273846238,0.37824921,79269.0,79258.0,0.005]
[1731273846239,0.12594221,79265.0,79258.0,0.005]
[1731273846817,0.12594221,79265.0,79260.0,0.252331]
[1731273847020,0.15169791,79278.0,79268.0,0.126153]
[1731273847220,0.15169791,79278.0,79262.0,0.005]
[1731273847221,0.12594221,79277.0,79263.0,0.005]
[1731273847427,0.12594221,79277.0,79268.0,0.0482]
[1731273847624,0.25222,79296.0,79279.0,0.088]
[1731273847801,0.19081178,79283.0,79279.0,0.088]
[1731273847999,0.12594221,79290.0,79279.0,0.083]
[1731273848245,0.001678,79276.0,79275.0,0.005]
[1731273848491,0.12762021,79276.0,79271.0,0.19081178]
[1731273848721,0.12762021,79276.0,79270.0,0.083]
[1731273848909,0.12762021,79276.0,79271.0,0.126148]
[1731273849461,0.12762021,79276.0,79270.0,0.083]
[1731273849691,0.12762021,79276.0,79275.0,0.126143]
[1731273849894,0.001678,79276.0,79275.0,0.126143]
[1731273850466,0.001678,79276.0,79275.0,0.18029111]
[1731273850827,0.001678,79276.0,79275.0,0.141143]
[1731273852071,0.001678,79276.0,79275.0,0.143143]
[1731273852280,0.001678,79276.0,79275.0,0.14566559]
[1731273852515,0.001678,79276.0,79275.0,0.143143]
[1731273852686,0.001678,79276.0,79275.0,0.19762225]
[1731273852863,0.001678,79276.0,79275.0,0.20014482]
[1731273853816,0.001678,79276.0,79275.0,0.19762225]
[1731273854996,0.001678,79276.0,79275.0,0.40658702]
[1731273855201,0.19081178,79291.0,79290.0,0.128119]
[1731273855528,0.03931659,79298.0,79297.0,0.126108]
[1731273855948,0.04872567,79298.0,79297.0,0.126108]
[1731273856103,0.04872567,79298.0,79297.0,0.206608]
[1731273856318,0.04872567,79298.0,79297.0,0.211608]
[1731273856499,0.04872567,79298.0,79297.0,0.25720833]
[1731273856928,0.04872567,79298.0,79297.0,0.26508758]
[1731273857341,0.03931659,79298.0,79297.0,0.26508758]
[1731273858329,0.03931659,79298.0,79297.0,0.41402979]
[1731273859916,0.03931659,79298.0,79297.0,0.45428651]
[1731273860125,0.001678,79298.0,79297.0,0.45428651]
[1731273860486,0.00939071,79325.0,79318.0,0.128074]
[1731273860682,0.00939071,79324.0,79318.0,0.128074]
[1731273860902,0.00939071,79326.0,79316.0,0.252155]
[1731273861144,0.12594221,79325.0,79315.0,0.005]
[1731273861565,0.12594221,79325.0,79316.0,0.252155]
[1731273861769,0.12594221,79325.0,79315.0,0.005]
[1731273861975,0.12594221,79325.0,79316.0,0.005]
[1731273862178,0.12594221,79325.0,79318.0,0.126074]
[1731273862594,0.12594221,79325.0,79316.0,0.005]
[1731273862800,0.12594221,79325.0,79317.0,0.252152]
[1731273863004,0.12594221,79325.0,79317.0,0.378227]
[1731273863210,0.12594221,79325.0,79315.0,0.04149375]
[1731273863429,0.12594221,79325.0,79309.0,0.19081178]
[1731273863639,0.12594221,79325.0,79317.0,0.31688778]
[1731273863844,0.12594221,79325.0,79318.0,0.126073]
[1731273864101,0.00939071,79327.0,79326.0,0.126062]
[1731273864319,0.19081178,79334.0,79324.0,0.126063]
[1731273864525,0.12594221,79333.0,79324.0,0.126063]
[1731273864754,0.13533292,79333.0,79324.0,0.126063]
[1731273864967,0.13533292,79333.0,79324.0,0.005]
[1731273865216,0.12594221,79333.0,79325.0,0.126062]
[1731273865422,0.12594221,79333.0,79324.0,0.005]
[1731273865627,0.12594221,79333.0,79326.0,0.126061]
[1731273866258,0.12594221,79333.0,79324.0,0.005]
[1731273866259,0.12594221,79333.0,79324.0,0.131064]
[1731273866459,0.12594221,79333.0,79324.0,0.17218187]
[1731273866722,0.25199321,79333.0,79324.0,0.04611787]
[1731273866957,0.29368756,79344.0,79332.0,0.19081178]
[1731273866958,0.12470847,79343.0,79332.0,0.19081178]
[1731273867214,0.12470847,79343.0,79328.0,0.005]
[1731273867215,0.126042,79339.0,79328.0,0.005]
[1731273867425,0.12594221,79338.0,79328.0,0.005]
[1731273867627,0.12594221,79338.0,79327.0,0.005]
[1731273867803,0.19081178,79335.0,79324.0,0.04111787]
[1731273868090,0.19081178,79335.0,79317.0,0.19081178]
[1731273868091,0.12594221,79334.0,79325.0,0.19081178]
[1731273868291,0.126051,79333.0,79325.0,0.19081178]
[1731273868467,0.12594221,79332.0,79325.0,0.19081178]
[1731273868686,0.13530518,79332.0,79325.0,0.19081178]
[1731273868894,0.13530518,79332.0,79322.0,0.005]
[1731273869016,0.12594221,79332.0,79322.0,0.005]
[1731273869218,0.25199521,79332.0,79324.0,0.126064]
[1731273869415,0.00936297,79331.0,79324.0,0.126064]
[1731273869617,0.12594221,79330.0,79321.0,0.005]
[1731273869873,0.126059,79328.0,79322.0,0.005]
[1731273870234,0.12594221,79327.0,79318.0,0.19081178]
[1731273870433,0.126063,79326.0,79318.0,0.19081178]
[1731273870641,0.12594221,79325.0,79318.0,0.18581178]
[1731273871093,0.25200521,79325.0,79318.0,0.18581178]
[1731273871334,0.12594221,79325.0,79317.0,0.04187969]
[1731273871573,0.02458085,79323.0,79317.0,0.04187969]
[1731273871763,0.02458085,79323.0,79310.0,0.0855]
[1731273871764,0.12594221,79322.0,79318.0,0.19081178]
[1731273871963,0.12594221,79322.0,79315.0,0.005]
[1731273872087,0.12594221,79322.0,79311.0,0.005]
[1731273872088,0.37807921,79322.0,79311.0,0.136085]
[1731273872298,0.12594221,79322.0,79315.0,0.131078]
[1731273872621,0.02577561,79329.0,79321.0,0.12607]
[1731273872622,0.00937194,79323.0,79321.0,0.12607]
[1731273872848,0.44290078,79338.0,79318.0,0.002]
[1731273872849,0.12594221,79328.0,79326.0,0.126061]
[1731273872993,0.12594221,79328.0,79323.0,0.252133]
[1731273873199,0.12594221,79328.0,79325.0,0.126062]
[1731273873415,0.12594221,79328.0,79321.0,0.005]
[1731273873632,0.12594221,79328.0,79324.0,0.126064]
[1731273873854,0.00937064,79332.0,79326.0,0.002]
[1731273873855,0.00937261,79332.0,79326.0,0.002]
[1731273874092,0.00937261,79332.0,79325.0,0.005]
[1731273874324,0.00937261,79337.0,79325.0,0.005]
[1731273874532,0.00937261,79337.0,79330.0,0.005]
[1731273874781,0.13540961,79342.0,79332.0,0.126051]
[1731273874952,0.13531482,79341.0,79332.0,0.126051]
[1731273875181,0.13531482,79341.0,79326.0,0.252124]
[1731273875182,0.00937261,79341.0,79335.0,0.005]
[1731273875420,0.000714,79351.0,79333.0,0.19581178]
[1731273875421,0.13539661,79350.0,79341.0,0.126037]
[1731273875640,0.12594221,79349.0,79337.0,0.005]
[1731273875840,0.12594221,79349.0,79342.0,0.126036]
[1731273876771,0.26134082,79349.0,79338.0,0.252086]
[1731273876990,0.13531482,79349.0,79340.0,0.252079]
[1731273877144,0.12594221,79349.0,79343.0,0.126034]
[1731273877374,0.12594221,79349.0,79342.0,0.252073]
[1731273877576,0.00937955,79348.0,79341.0,0.257076]
[1731273877743,0.12594221,79347.0,79344.0,0.126032]
[1731273877947,0.12594221,79347.0,79341.0,0.257076]
[1731273878127,0.12594221,79347.0,79344.0,0.126032]
[1731273878333,0.000714,79351.0,79347.0,0.002]
[1731273878561,0.000714,79351.0,79346.0,0.007]
[1731273878562,0.12665621,79351.0,79346.0,0.007]
[1731273878785,0.12665621,79351.0,79348.0,0.126025]
[1731273878997,0.12665621,79351.0,79349.0,0.00787396]
[1731273879222,0.12665621,79351.0,79350.0,0.00787396]
[1731273879638,0.12665621,79351.0,79346.0,0.13103]
[1731273879839,0.12665621,79351.0,79347.0,0.00787404]
[1731273880149,0.12665621,79351.0,79348.0,0.00787404]
[1731273880591,0.12665621,79351.0,79349.0,0.00787412]
[1731273880761,0.12665621,79351.0,79350.0,0.00787412]
[1731273880991,0.17499473,79351.0,79329.0,0.0797]
[1731273881213,0.17499473,79351.0,79337.0,0.19081178]
[1731273881214,0.023,79346.0,79337.0,0.19081178]
[1731273881415,0.126043,79338.0,79337.0,0.19081178]
[1731273881625,0.25198521,79338.0,79337.0,0.19081178]
[1731273881831,0.12594221,79338.0,79329.0,0.0797]
[1731273881984,0.12594221,79337.0,79330.0,0.00787563]
[1731273882346,0.126048,79335.0,79331.0,0.00787563]
[1731273882559,0.12594221,79334.0,79332.0,0.00787563]
[1731273882760,0.12594221,79334.0,79333.0,0.00787563]
[1731273883082,0.02605252,79351.0,79334.0,0.252098]
[1731273883083,0.000714,79351.0,79334.0,0.252098]
[1731273883300,0.000714,79351.0,79341.0,0.005]
[1731273883301,0.19081178,79347.0,79341.0,0.005]
[1731273883553,0.31675399,79346.0,79342.0,0.005]
[1731273883759,0.12594221,79346.0,79342.0,0.005]
[1731273883989,0.12594221,79346.0,79342.0,0.131036]
[1731273884213,0.12594221,79346.0,79343.0,0.00787434]
[1731273884436,0.25197321,79346.0,79342.0,0.005]
[1731273884635,0.12594221,79346.0,79343.0,0.00787488]
[1731273884784,0.12594221,79346.0,79344.0,0.00787484]
[1731273884990,0.12594221,79346.0,79342.0,0.005]
[1731273885399,0.12594221,79346.0,79343.0,0.00787486]
[1731273885599,0.12594221,79346.0,79342.0,0.005]
[1731273885952,0.12594221,79346.0,79338.0,0.01]
[1731273885953,0.126033,79344.0,79343.0,0.00787487]
[1731273886196,0.12594221,79346.0,79338.0,0.005]
[1731273886197,0.25197221,79346.0,79340.0,0.005]
[1731273886399,0.126035,79343.0,79341.0,0.00787505]
[1731273886614,0.12594221,79346.0,79342.0,0.00787505]
[1731273886836,0.24697221,79346.0,79343.0,0.00787505]
[1731273887009,0.24697221,79346.0,79340.0,0.005]
[1731273887244,0.252066,79344.0,79338.0,0.04194087]
[1731273887473,0.126037,79342.0,79338.0,0.04194087]
[1731273887682,0.12594221,79341.0,79334.0,0.005]
[1731273887892,0.12594221,79341.0,79327.0,0.0797]
[1731273887893,0.252082,79339.0,79335.0,0.00787503]
[1731273888119,0.126059,79328.0,79325.0,0.19081178]
[1731273888288,0.126058,79328.0,79327.0,0.04001402]
[1731273888545,0.12606,79327.0,79326.0,0.00787585]
[1731273888746,0.47200773,79327.0,79326.0,0.00787585]
[1731273889015,0.61337909,79327.0,79326.0,0.00787585]
[1731273889209,0.61337909,79327.0,79318.0,0.000838]
[1731273889210,0.249073,79319.0,79318.0,0.000838]
[1731273889426,0.35201521,79319.0,79318.0,0.000838]
[1731273889628,0.25201521,79319.0,79318.0,0.000838]
[1731273890305,0.12594221,79319.0,79318.0,0.000838]
[1731273890630,0.25201521,79319.0,79318.0,0.000838]
[1731273891125,0.33485718,79319.0,79318.0,0.000838]
[1731273891322,0.25201521,79319.0,79318.0,0.000838]
[1731273895795,0.40811687,79319.0,79318.0,0.000838]
[1731273896175,0.35201521,79319.0,79318.0,0.000838]
[1731273896352,0.49072163,79319.0,79318.0,0.000838]
[1731273896670,0.56552385,79319.0,79318.0,0.000838]
[1731273897153,0.49072163,79319.0,79318.0,0.000838]
[1731273897361,0.50972155,79319.0,79318.0,0.000838]
[1731273897613,0.35201521,79319.0,79318.0,0.000838]
[1731273897763,0.25201521,79319.0,79318.0,0.000838]
[1731273898371,0.28959795,79319.0,79318.0,0.000838]
[1731273898566,0.25201521,79319.0,79318.0,0.000838]
[1731273900281,0.28959795,79319.0,79318.0,0.000838]
[1731273900720,0.12594221,79319.0,79318.0,0.000838]
[1731273901638,0.25201521,79319.0,79318.0,0.000838]
[1731273903561,0.12594221,79319.0,79318.0,0.000838]
[1731273903720,0.03760225,79322.0,79318.0,0.000838]
[1731273903926,0.03760225,79322.0,79321.0,0.14307]
[1731273904568,0.03760225,79322.0,79321.0,0.27247]
[1731273904769,0.001676,79346.0,79344.0,0.1294]
[1731273905108,0.12594221,79345.0,79344.0,0.1294]
[1731273905281,0.001676,79346.0,79345.0,0.143031]
[1731273905838,0.001676,79346.0,79345.0,0.14555138]
[1731273906021,0.26768154,79364.0,79350.0,0.138023]
[1731273906239,0.19248778,79364.0,79350.0,0.138023]
[1731273906448,0.19248778,79364.0,79350.0,0.35802852]
[1731273906654,0.19248778,79364.0,79350.0,0.41524175]
[1731273906798,0.001676,79364.0,79350.0,0.47651484]
[1731273906995,0.19248778,79364.0,79355.0,0.128016]
[1731273907196,0.19248778,79364.0,79355.0,0.19928909]
[1731273910104,0.19248778,79364.0,79355.0,0.23957119]
[1731273910347,0.19248778,79364.0,79355.0,0.27921909]
[1731273910936,0.19248778,79364.0,79355.0,0.2316981]
[1731273911951,0.001676,79364.0,79355.0,0.23421811]
[1731273912821,0.001676,79364.0,79355.0,0.2316981]
[1731273913716,0.001676,79364.0,79355.0,0.2296981]
[1731273914348,0.001676,79364.0,79355.0,0.2316981]
[1731273914577,0.001676,79364.0,79355.0,0.2296981]
[1731273914775,0.001676,79364.0,79355.0,0.2316981]
[1731273914994,0.001676,79364.0,79355.0,0.2296981]
[1731273915208,0.005,79360.0,79355.0,0.2316981]
[1731273916277,0.005,79360.0,79355.0,0.2266981]
[1731273916562,0.005,79360.0,79355.0,0.2316981]
[1731273917212,0.005,79360.0,79355.0,0.2296981]
[1731273917427,0.005,79360.0,79355.0,0.2316981]
[1731273917642,0.005,79360.0,79355.0,0.23421821]
[1731273917846,0.005,79360.0,79355.0,0.24773553]
[1731273918076,0.005,79360.0,79355.0,0.46774105]
[1731273918279,0.005,79360.0,79355.0,0.46522094]
[1731273918701,0.005,79360.0,79355.0,0.44970362]
[1731273918905,0.005,79360.0,79355.0,0.45170362]
[1731273919774,0.0107731,79369.0,79368.0,0.137995]
[1731273920228,0.0107731,79369.0,79368.0,0.35600052]
[1731273920557,0.0107731,79369.0,79368.0,0.41160052]
[1731273921658,0.0107731,79369.0,79368.0,0.40960052]
[1731273921887,0.0107731,79369.0,79368.0,0.191595]
[1731273922122,0.0107731,79369.0,79368.0,0.44060731]
[1731273922389,0.0107731,79369.0,79368.0,0.43808769]
[1731273923391,0.0107731,79369.0,79368.0,0.55359818]
[1731273923591,0.000714,79370.0,79369.0,0.142993]
[1731273923816,0.000714,79370.0,79369.0,0.14551244]
[1731273924024,0.000714,79370.0,79369.0,0.22375628]
[1731273924269,0.000714,79370.0,79369.0,0.22123684]
[1731273924686,0.000714,79370.0,79369.0,0.21336696]
[1731273924912,0.000714,79370.0,79369.0,0.21388655]
[1731273925133,0.000714,79370.0,79369.0,0.21336696]
[1731273925349,0.000714,79370.0,79369.0,0.142993]
[1731273925571,0.000714,79370.0,79369.0,0.132993]
[1731273925773,0.000714,79370.0,79369.0,0.142993]
[1731273926397,0.000714,79370.0,79369.0,0.140993]
[1731273927693,0.000714,79370.0,79369.0,0.142993]
[1731273927921,0.000714,79370.0,79369.0,0.2209032]
[1731273928416,0.000714,79370.0,79369.0,0.140993]
[1731273929050,0.000714,79370.0,79369.0,0.142993]
[1731273929711,0.000714,79370.0,79369.0,0.14795892]
[1731273930974,0.000714,79370.0,79369.0,0.29413434]
[1731273931203,0.000714,79372.0,79371.0,0.14799]
[1731273931398,0.19081178,79387.0,79376.0,0.28415742]
[1731273932492,8e-05,79394.0,79376.0,0.137982]
[1731273932707,8e-05,79394.0,79376.0,0.41345742]
[1731273933316,8e-05,79394.0,79379.0,0.142977]
[1731273933530,8e-05,79394.0,79379.0,0.16881435]
[1731273934167,8e-05,79394.0,79379.0,0.16681435]
[1731273934372,8e-05,79394.0,79379.0,0.16881435]
[1731273935313,8e-05,79394.0,79393.0,0.142955]
[1731273935515,8e-05,79394.0,79393.0,0.46838831]
[1731273935722,8e-05,79394.0,79393.0,0.43272592]
[1731273935957,8e-05,79394.0,79393.0,0.140955]
[1731273936164,0.12602221,79394.0,79385.0,0.005]
[1731273936380,0.12602221,79394.0,79391.0,0.005]
[1731273936656,0.12602221,79394.0,79393.0,0.130955]
[1731273936657,8e-05,79394.0,79393.0,0.130955]
[1731273936814,8e-05,79394.0,79393.0,0.19432458]
[1731273937018,8e-05,79394.0,79393.0,0.19632458]
[1731273937493,8e-05,79394.0,79393.0,0.19432458]
[1731273937689,8e-05,79394.0,79393.0,0.20419301]
[1731273937929,8e-05,79394.0,79393.0,0.18919301]
[1731273938156,8e-05,79394.0,79393.0,0.12882343]
[1731273938603,8e-05,79394.0,79393.0,0.120955]
[1731273939655,8e-05,79394.0,79393.0,0.16109979]
[1731273940105,8e-05,79394.0,79393.0,0.31227521]
[1731273940317,8e-05,79394.0,79393.0,0.38529899]
[1731273940810,8e-05,79394.0,79393.0,0.23912357]
[1731273941008,8e-05,79394.0,79393.0,0.16809979]
[1731273941421,8e-05,79394.0,79393.0,0.16609979]
[1731273942257,8e-05,79394.0,79393.0,0.05014479]
[1731273943536,8e-05,79394.0,79393.0,0.17609979]
[1731273944311,8e-05,79394.0,79393.0,0.05014479]
[1731273944709,0.12602221,79394.0,79391.0,0.005]
[1731273944915,0.12602221,79394.0,79393.0,0.005]
[1731273945140,0.12602221,79394.0,79391.0,0.01]
[1731273945380,0.12602221,79394.0,79391.0,0.005]
[1731273945581,0.12602221,79394.0,79391.0,0.01]
[1731273946291,0.12686021,79394.0,79391.0,0.01]
[1731273947036,0.12686021,79394.0,79391.0,0.04723169]
[1731273947285,0.12686021,79394.0,79393.0,0.125955]
[1731273947453,0.12686021,79394.0,79391.0,0.17318869]
[1731273947870,0.12686021,79394.0,79391.0,0.04723169]
[1731273948071,0.000918,79394.0,79393.0,0.132955]
[1731273948213,0.000918,79394.0,79393.0,0.130955]
[1731273948664,0.000918,79394.0,79393.0,0.19058444]
[1731273949234,0.000918,79394.0,79393.0,0.20258444]
[1731273949639,0.000918,79394.0,79393.0,0.27928444]
[1731273949847,4e-05,79400.0,79399.0,0.268646]
[1731273950196,0.000714,79405.0,79404.0,0.268638]
[1731273951999,0.000714,79415.0,79414.0,0.273622]
[1731273952185,0.000714,79415.0,79414.0,0.70191505]
[1731273952395,0.000714,79415.0,79414.0,0.40456421]
[1731273952595,0.000714,79415.0,79414.0,0.61036907]
[1731273952998,0.000713,79426.0,79425.0,0.135904]
[1731273953231,0.000713,79426.0,79425.0,0.266604]
[1731273954040,0.12665521,79426.0,79421.0,0.005]
[1731273954249,0.12594221,79425.0,79424.0,0.19081178]
[1731273954443,0.12594221,79425.0,79423.0,0.002]
[1731273954676,0.000713,79426.0,79425.0,0.005]
[1731273954869,0.000713,79426.0,79425.0,0.130904]
[1731273955081,0.000713,79426.0,79425.0,0.20357512]
[1731273955366,0.000713,79426.0,79425.0,0.20857512]
[1731273955698,0.000713,79426.0,79425.0,0.33451733]
[1731273955901,0.000713,79426.0,79425.0,0.34438273]
[1731273956704,0.000713,79426.0,79425.0,0.1457694]
[1731273956904,0.000713,79426.0,79425.0,0.29194482]
[1731273958825,0.000713,79426.0,79425.0,0.45548703]
[1731273959032,0.000713,79426.0,79425.0,0.48989107]
[1731273959204,0.000713,79426.0,79425.0,0.59489107]
[1731273959650,0.000713,79426.0,79425.0,0.58702567]
[1731273960165,0.000713,79426.0,79425.0,0.67312567]
[1731273960368,0.000713,79426.0,79425.0,0.64372163]
[1731273960575,0.000713,79426.0,79425.0,0.64872163]
[1731273960780,0.000713,79426.0,79425.0,0.54372163]
[1731273961027,0.000713,79426.0,79425.0,0.41277942]
[1731273961852,0.000713,79426.0,79425.0,0.54372163]
[1731273962090,0.000713,79426.0,79425.0,0.55372163]
[1731273962505,0.000713,79426.0,79425.0,0.55492589]
[1731273962716,0.000713,79426.0,79425.0,0.54992589]
[1731273962950,0.000713,79426.0,79425.0,0.53872163]
[1731273963154,0.000713,79426.0,79425.0,0.183504]
[1731273963370,0.18652478,79434.0,79425.0,0.005]
[1731273963579,0.000713,79436.0,79421.0,0.04524331]
[1731273963580,0.251794,79430.0,79421.0,0.04524331]
[1731273963796,0.125906,79425.0,79422.0,0.19081178]
[1731273964011,0.12594221,79424.0,79419.0,0.005]
[1731273964260,0.12594221,79424.0,79398.0,0.332993]
[1731273964261,0.0417,79422.0,79411.0,0.19081178]
[1731273964474,0.0417,79422.0,79394.0,0.19581178]
[1731273964475,0.19081178,79417.0,79394.0,0.19581178]
[1731273964696,0.1,79415.0,79393.0,0.006676]
[1731273964910,0.023,79409.0,79393.0,0.006676]
[1731273965120,0.25187,79406.0,79393.0,0.001676]
[1731273965549,0.279861,79409.0,79393.0,0.006676]
[1731273965993,0.12594221,79408.0,79400.0,0.002]
[1731273966254,0.12594221,79408.0,79405.0,0.127935]
[1731273966469,0.12594221,79408.0,79402.0,0.005]
[1731273967174,0.19081178,79417.0,79406.0,0.005]
[1731273967653,0.25182,79422.0,79406.0,0.005]
[1731273967654,0.125913,79420.0,79406.0,0.005]
[1731273967857,0.125912,79421.0,79407.0,0.005]
[1731273968084,0.02564598,79430.0,79418.0,0.125914]
[1731273968290,0.19081178,79425.0,79418.0,0.125914]
[1731273968491,0.02564598,79430.0,79416.0,0.125918]
[1731273968492,0.12594221,79424.0,79416.0,0.125918]
[1731273968744,0.12594221,79424.0,79418.0,0.125915]
[1731273968963,0.25184821,79424.0,79415.0,0.005]
[1731273969182,0.125913,79420.0,79413.0,0.005]
[1731273969363,0.125911,79421.0,79413.0,0.005]
[1731273969604,0.12594221,79424.0,79415.0,0.005]
[1731273970271,0.12594221,79424.0,79417.0,0.125916]
[1731273971611,0.000837,79426.0,79425.0,0.130904]
[1731273971735,0.000837,79426.0,79425.0,0.005]
[1731273972656,0.000837,79426.0,79421.0,0.007]
[1731273972879,0.000837,79426.0,79425.0,0.005]
[1731273974756,0.000837,79426.0,79425.0,0.130904]
[1731273974977,0.000837,79426.0,79425.0,0.005]
[1731273975197,0.000837,79426.0,79425.0,0.130904]
[1731273975602,0.000837,79426.0,79425.0,0.132904]
[1731273975819,0.000837,79426.0,79425.0,0.1404221]
[1731273976027,0.000837,79426.0,79425.0,0.214404]
[1731273976230,0.000837,79426.0,79425.0,0.28797763]
[1731273976640,0.000837,79426.0,79425.0,0.41391984]
[1731273978612,0.000837,79426.0,79425.0,0.41891984]
[1731273978818,0.000837,79426.0,79425.0,0.42391984]
[1731273979061,0.000713,79436.0,79435.0,0.183889]
[1731273979254,0.000713,79436.0,79435.0,0.55477257]
[1731273979458,0.000713,79436.0,79435.0,0.55225528]
[1731273979878,0.000713,79436.0,79435.0,0.56011862]
[1731273980311,0.000713,79436.0,79435.0,0.56011833]
[1731273981474,0.0178,79440.0,79435.0,0.43422933]
[1731273981684,0.0178,79440.0,79439.0,0.137882]
[1731273981890,0.0178,79440.0,79439.0,0.27168726]
[1731273983018,0.0178,79440.0,79439.0,0.1462623]
[1731273983244,0.0178,79440.0,79439.0,0.14374505]
[1731273984134,0.0178,79440.0,79439.0,0.26968726]
[1731273984338,0.0178,79440.0,79439.0,0.29297476]
[1731273984982,0.0178,79440.0,79439.0,0.29497476]
[1731273985422,0.0178,79440.0,79439.0,0.29297476]
[1731273985647,0.0178,79440.0,79439.0,0.29997476]
[1731273985864,0.0178,79440.0,79439.0,0.31255331]
[1731273986535,0.0178,79440.0,79439.0,0.29997386]
[1731273987939,0.0178,79440.0,79439.0,0.29797386]
[1731273988174,0.0178,79440.0,79439.0,0.14874415]
[1731273988397,0.0178,79440.0,79439.0,0.16132444]
[1731273988809,0.0178,79440.0,79439.0,0.15632444]
[1731273989462,0.0178,79440.0,79439.0,0.16132444]
[1731273990781,0.0178,79440.0,79439.0,0.16332444]
[1731273991245,0.0178,79440.0,79439.0,0.15832444]
[1731273991459,0.0178,79440.0,79439.0,0.18340699]
[1731273991661,0.0178,79440.0,79439.0,0.15832444]
[1731273992075,0.0178,79440.0,79439.0,0.14374415]
[1731273992289,0.0178,79440.0,79439.0,0.15074415]
[1731273992529,0.0178,79440.0,79439.0,0.27668636]
[1731273993230,0.000713,79457.0,79456.0,0.012]
[1731273993446,0.19081178,79466.0,79465.0,0.34997757]
[1731273993657,0.19081178,79466.0,79465.0,0.130841]
[1731273993874,0.000713,79474.0,79466.0,0.005]
[1731273994083,0.12594221,79473.0,79466.0,0.005]
[1731273994337,0.12594221,79473.0,79468.0,0.125836]
[1731273994540,0.12594221,79473.0,79468.0,0.0387522]
[1731273994751,0.12594221,79473.0,79470.0,0.125833]
[1731273995206,0.12594221,79473.0,79469.0,0.125834]
[1731273995438,0.12594221,79473.0,79470.0,0.125833]
[1731273996115,0.12594221,79473.0,79468.0,0.251673]
[1731273996343,0.12594221,79473.0,79469.0,0.0513359]
[1731273996565,0.12594221,79473.0,79468.0,0.125835]
[1731273996797,0.12594221,79473.0,79466.0,0.005]
[1731273997000,0.12594221,79473.0,79465.0,0.005]
[1731273997244,0.12594221,79473.0,79468.0,0.125836]
[1731273997588,0.12594221,79473.0,79469.0,0.0130836]
[1731273997793,0.12594221,79473.0,79468.0,0.125835]
[1731273997972,0.12594221,79473.0,79466.0,0.251678]
[1731273998196,0.12594221,79473.0,79468.0,0.125835]
[1731273998393,0.12594221,79473.0,79472.0,0.12583]
[1731273998829,0.125818,79480.0,79470.0,0.251667]
[1731273999055,0.12594221,79479.0,79473.0,0.125828]
[1731273999208,0.12594221,79479.0,79471.0,0.0513343]
[1731273999412,0.12594221,79479.0,79471.0,0.1771643]
[1731273999810,0.12594221,79479.0,79474.0,0.125827]
[1731274000020,0.12594221,79479.0,79477.0,0.125821]
[1731274000215,0.15135915,79488.0,79480.0,0.125817]
[1731274000433,0.12594221,79487.0,79478.0,0.12582]
[1731274000814,0.12594221,79487.0,79474.0,0.503308]
[1731274000815,0.125811,79484.0,79474.0,0.125826]
[1731274001049,0.125817,79480.0,79472.0,0.12583]
[1731274001213,0.12594221,79479.0,79473.0,0.00786152]
[1731274001409,0.12624221,79479.0,79475.0,0.125825]
[1731274002016,0.12624221,79479.0,79476.0,0.125823]
[1731274002222,0.12624221,79479.0,79473.0,0.251657]
[1731274002434,0.08024221,79479.0,79474.0,0.00786151]
[1731274002647,0.125804,79489.0,79480.0,0.1997]
[1731274002857,0.25174721,79488.0,79480.0,0.325517]
[1731274003313,0.251615,79487.0,79480.0,0.1997]
[1731274003526,0.125814,79482.0,79481.0,0.0078614]
[1731274003719,0.125811,79484.0,79481.0,0.0078614]
[1731274003897,0.12594221,79483.0,79481.0,0.19081178]
[1731274004098,0.12594221,79483.0,79482.0,0.00786144]
[1731274004300,0.12594221,79483.0,79482.0,0.04119948]
[1731274004551,0.12594221,79483.0,79482.0,0.00786144]
[1731274005945,0.12594221,79483.0,79482.0,0.13367544]
[1731274006754,0.12594221,79483.0,79482.0,0.00786144]
[1731274007392,0.12594221,79483.0,79480.0,0.325517]
[1731274007601,0.12594221,79483.0,79481.0,0.00786087]
[1731274007759,0.12594221,79483.0,79482.0,0.00786087]
[1731274009759,0.25175521,79483.0,79482.0,0.00786087]
[1731274009969,0.12594221,79483.0,79482.0,0.00786087]
[1731274010376,0.252451,79487.0,79482.0,0.00786087]
[1731274010589,0.12594221,79486.0,79480.0,0.1997]
[1731274010785,0.12594221,79486.0,79481.0,0.0078609]
[1731274010997,0.12594221,79486.0,79482.0,0.0078609]
[1731274011199,0.12594221,79486.0,79483.0,0.125812]
[1731274011343,0.25175021,79486.0,79484.0,0.00786081]
[1731274011539,0.25175021,79486.0,79480.0,0.1997]
[1731274011749,0.12594221,79486.0,79481.0,0.0078608]
[1731274012024,0.25175021,79486.0,79482.0,0.0078608]
[1731274012234,0.12581,79485.0,79483.0,0.0078608]
[1731274012441,0.25175221,79485.0,79480.0,0.1997]
[1731274012692,0.12594221,79485.0,79481.0,0.00786085]
[1731274012898,0.251626,79483.0,79480.0,0.1997]
[1731274013098,0.125816,79481.0,79480.0,0.1997]
[1731274013448,0.12594221,79483.0,79480.0,0.325516]
[1731274013824,0.12594221,79483.0,79480.0,0.1997]
[1731274014749,0.25175521,79483.0,79481.0,0.00786121]
[1731274014958,0.12594221,79483.0,79480.0,0.1997]
[1731274015589,0.25175521,79483.0,79481.0,0.00786115]
[1731274015822,0.25175521,79483.0,79480.0,0.1997]
[1731274016068,0.12594221,79483.0,79481.0,0.00786114]
[1731274016578,0.000837,79487.0,79482.0,0.00786079]
[1731274016757,0.12594221,79486.0,79483.0,0.00786083]
[1731274016979,0.12594221,79486.0,79480.0,0.1997]
[1731274017289,0.000837,79483.0,79481.0,0.00786085]
[1731274017462,0.000837,79483.0,79482.0,0.00786085]
[1731274018523,0.000837,79483.0,79482.0,0.13367485]
[1731274018730,0.000837,79483.0,79482.0,0.00786085]
[1731274019501,0.000837,79483.0,79482.0,0.00765485]
[1731274020380,0.000837,79483.0,79482.0,0.13346885]
[1731274021586,0.000837,79483.0,79482.0,0.125814]